fUST/lending_fUST_20250216
["ID","MTS","AMOUNT","RATE_DAILY","PERIOD"]
[353214405,1739658454072,500.0,8.843e-05,2]
[353214406,1739658454174,542.0682329,8.843e-05,2]
[353214407,1739658457604,769.36,8.843e-05,2]
[353214408,1739658458061,17040.53,8.843e-05,2]
[353214409,1739658458703,500.0,8.843e-05,2]
[353214410,1739658459519,500.0,8.843e-05,2]
[353214411,1739658459912,3331.04,8.843e-05,2]
[353214412,1739658460404,657.01,8.843e-05,2]
[353214413,1739658461184,37595.33,8.843e-05,2]
[353214414,1739658463410,703.69,8.843e-05,2]
[353214415,1739658465420,500.0,8.843e-05,2]
[353214416,1739658468994,1201.02,8.843e-05,2]
[353214417,1739658472537,1767.16,8.843e-05,2]
[353214418,1739658476489,500.0,8.843e-05,2]
[353214419,1739658477305,500.0,8.843e-05,2]
[353214420,1739658479147,2182.62,8.843e-05,2]
[353214421,1739658480454,2192.68,8.843e-05,2]
[353214422,1739658480991,1438.54,8.843e-05,2]
[353214423,1739658481120,500.0,8.843e-05,2]
[353214424,1739658481881,500.0,8.843e-05,2]
[353214425,1739658481973,500.0,8.843e-05,2]
[353214426,1739658488073,827.56,8.843e-05,2]
[353214427,1739658493096,1553.73,8.843e-05,2]
[353214428,1739658496508,500.0,8.843e-05,2]
[353214429,1739658498852,500.0,8.843e-05,2]
[353214430,1739658499284,500.0,8.843e-05,2]
[353214431,1739658502205,652.84,8.843e-05,2]
[353214432,1739658503393,500.0,8.843e-05,2]
[353214433,1739658504184,592.72,8.843e-05,2]
[353214434,1739658504822,998.54,8.843e-05,2]
[353214435,1739658508712,500.0,8.843e-05,2]
[353214436,1739658510427,1450.91,8.843e-05,2]
[353214437,1739658511598,500.0,8.843e-05,2]
[353214438,1739658511929,649.43,8.843e-05,2]
[353214439,1739658513557,764.7,8.843e-05,2]
[353214444,1739658520220,500.0,8.843e-05,2]
[353214445,1739658521214,893.92,8.843e-05,2]
[353214446,1739658521297,500.0,8.843e-05,2]
[353214448,1739658522797,500.0,8.843e-05,2]
[353214450,1739658522936,1881.17,8.843e-05,2]
[353214451,1739658525416,503.11398077,8.843e-05,2]
[353214452,1739658528641,567.17746627,8.843e-05,2]
[353214453,1739658534627,500.0,8.843e-05,2]
[353214454,1739658537356,548.77,8.843e-05,2]
[353214458,1739658540022,500.0,8.843e-05,2]
[353214459,1739658540306,529.87,8.843e-05,2]
[353214460,1739658545541,2011.68,8.843e-05,2]
[353214461,1739658549259,500.0,8.843e-05,2]
[353214462,1739658555006,2085.82,8.843e-05,2]
[353214463,1739658556920,500.0,8.843e-05,2]
[353214464,1739658557350,1137.45,8.843e-05,2]
[353214465,1739658559969,500.0,8.843e-05,2]
[353214466,1739658560190,500.0,8.843e-05,2]
[353214467,1739658560461,537.1436798,8.843e-05,2]
[353214468,1739658562923,1355.89,8.843e-05,2]
[353214469,1739658563167,500.0,8.843e-05,2]
[353214473,1739658565622,500.0,8.843e-05,2]
[353214474,1739658569012,500.0,8.843e-05,2]
[353214475,1739658572121,500.0,8.843e-05,2]
[353214476,1739658572610,390.75867204,8.843e-05,2]
[353214477,1739658572935,500.0,8.843e-05,2]
[353214478,1739658575454,5228.13,8.843e-05,2]
[353214479,1739658576393,629.94,8.843e-05,2]
[353214480,1739658578033,729.7,8.843e-05,2]
[353214481,1739658578073,500.0,8.843e-05,2]
[353214482,1739658579994,1141.51,8.843e-05,2]
[353214483,1739658580606,500.0,8.843e-05,2]
[353214484,1739658586484,1506.26,8.843e-05,2]
[353214485,1739658586673,500.0,8.843e-05,2]
[353214486,1739658587599,500.0,8.843e-05,2]
[353214487,1739658588109,1364.43,8.843e-05,2]
[353214488,1739658588766,500.0,8.843e-05,2]
[353214492,1739658591107,558.81,8.843e-05,2]
[353214493,1739658591886,500.0,8.843e-05,2]
[353214494,1739658592747,500.0,8.843e-05,2]
[353214495,1739658595934,500.81643126,8.843e-05,2]
[353214496,1739658597155,844.26,8.843e-05,2]
[353214497,1739658598148,500.0,8.843e-05,2]
[353214498,1739658599095,555.13,8.843e-05,2]
[353214499,1739658599209,500.0,8.843e-05,2]
[353214500,1739658601613,500.0,8.843e-05,2]
[353214501,1739658603417,815.07,8.843e-05,2]
[353214502,1739658604507,500.0,8.843e-05,2]
[353214503,1739658606893,2457.19,8.843e-05,2]
[353214504,1739658608534,500.0,8.843e-05,2]
[353214505,1739658609173,502.8691632,8.843e-05,2]
[353214506,1739658612578,1758.18,8.843e-05,2]
[353214507,1739658622061,922.03,8.843e-05,2]
[353214508,1739658622931,889.42,8.843e-05,2]
[353214509,1739658623055,15031.67,8.843e-05,2]
[353214510,1739658629994,2526.82,8.843e-05,2]
[353214511,1739658630968,274.81648818,8.843e-05,2]
[353214526,1739658632432,-500.0,8.844e-05,2]
[353214527,1739658632441,-112.540291,8.844e-05,2]
[353214528,1739658632453,-387.459709,8.844e-05,2]
[353214529,1739658632462,-1066.19,8.844e-05,2]
[353214530,1739658632472,-500.0,8.844e-05,2]
[353214531,1739658632481,-1364.82,8.844e-05,2]
[353214532,1739658632490,-605.42,8.844e-05,2]
[353214534,1739658632499,-500.0,8.844e-05,2]
[353214535,1739658632509,-626.24,8.844e-05,2]
[353214536,1739658632518,-571.7,8.844e-05,2]
[353214537,1739658632529,-761.79,8.844e-05,2]
[353214538,1739658632542,-300.92491055,8.844e-05,2]
[353214539,1739658632555,-500.0,8.844e-05,2]
[353214540,1739658632564,-2741.89,8.844e-05,2]
[353214541,1739658632574,-500.0,8.844e-05,2]
[353214542,1739658632584,-2982.7,8.844e-05,2]
[353214543,1739658632594,-850.69,8.844e-05,2]
[353214544,1739658632603,-500.0,8.844e-05,2]
[353214545,1739658632612,-500.0,8.844e-05,2]
[353214546,1739658632624,-500.0,8.844e-05,2]
[353214547,1739658632634,-532.25,8.844e-05,2]
[353214548,1739658632645,-671.89,8.844e-05,2]
[353214549,1739658632655,-1655.22974348,8.844e-05,2]
[353214550,1739658632667,-1160.88025652,8.844e-05,2]
[353214551,1739658632676,-500.0,8.844e-05,2]
[353214552,1739658632686,-501.54684381,8.844e-05,2]
[353214553,1739658632696,-580.76,8.844e-05,2]
[353214554,1739658632706,-500.0,8.844e-05,2]
[353214555,1739658632715,-1070.39,8.844e-05,2]
[353214556,1739658632725,-500.0,8.844e-05,2]
[353214557,1739658632735,-1349.55,8.844e-05,2]
[353214558,1739658632745,-500.0,8.844e-05,2]
[353214559,1739658632754,-500.0,8.844e-05,2]
[353214560,1739658632764,-500.0,8.844e-05,2]
[353214561,1739658632773,-500.0,8.844e-05,2]
[353214562,1739658632784,-500.0,8.844e-05,2]
[353214563,1739658632794,-500.0,8.844e-05,2]
[353214564,1739658632803,-963.57,8.844e-05,2]
[353214565,1739658632812,-963.57,8.844e-05,2]
[353214566,1739658632821,-910.10883096,8.844e-05,2]
[353214570,1739658638041,500.0,8.843e-05,2]
[353214571,1739658638182,-53.46116904,8.844e-05,2]
[353214572,1739658638192,-963.57,8.844e-05,2]
[353214573,1739658638202,-963.57,8.844e-05,2]
[353214574,1739658638211,-963.57,8.844e-05,2]
[353214575,1739658638220,-500.0,8.844e-05,2]
[353214576,1739658638230,-500.0,8.844e-05,2]
[353214577,1739658638240,-932.67,8.844e-05,2]
[353214578,1739658638249,-500.0,8.845e-05,2]
[353214579,1739658638258,-500.0,8.845e-05,2]
[353214580,1739658638267,-500.0,8.845e-05,2]
[353214581,1739658638278,-500.0,8.845e-05,2]
[353214582,1739658638287,-500.0,8.845e-05,2]
[353214583,1739658638296,-500.0,8.845e-05,2]
[353214584,1739658638305,-500.0,8.845e-05,2]
[353214585,1739658638314,-285.56613833,8.845e-05,2]
[353214586,1739658638324,-500.0,8.845e-05,2]
[353214587,1739658638333,-500.0,8.845e-05,2]
[353214588,1739658638343,-500.0,8.845e-05,2]
[353214589,1739658638352,-963.57,8.845e-05,2]
[353214590,1739658638363,-368.5760302,8.845e-05,2]
[353214591,1739658638374,-594.9939698,8.845e-05,2]
[353214592,1739658638385,-963.57,8.845e-05,2]
[353214593,1739658638397,-667.26,8.846e-05,2]
[353214594,1739658638409,-500.0,8.846e-05,2]
[353214595,1739658638419,-511.25565528,8.846e-05,2]
[353214596,1739658638430,-500.0,8.846e-05,2]
[353214597,1739658638439,-500.0,8.846e-05,2]
[353214598,1739658638450,-500.0,8.846e-05,2]
[353214599,1739658638459,-511.67033962,8.846e-05,2]
[353214600,1739658638468,-500.29079218,8.846e-05,2]
[353214601,1739658638477,-90.16295668,8.846e-05,2]
[353214602,1739658638488,-470.95704332,8.846e-05,2]
[353214603,1739658638497,-500.0,8.846e-05,2]
[353214604,1739658638507,-7.99897462,8.846e-05,2]
[353214605,1739658638519,-492.00102538,8.846e-05,2]
[353214606,1739658638530,-500.0,8.846e-05,2]
[353214607,1739658638540,-638.52,8.846e-05,2]
[353214608,1739658638551,-500.0,8.846e-05,2]
[353214609,1739658638560,-500.0,8.846e-05,2]
[353214610,1739658638570,-500.0,8.846e-05,2]
[353214611,1739658638579,-500.0,8.846e-05,2]
[353214612,1739658638588,-500.33956262,8.846e-05,2]
[353214613,1739658638597,-500.0,8.846e-05,2]
[353214614,1739658638724,-500.0,8.846e-05,2]
[353214615,1739658638733,-500.0,8.846e-05,2]
[353214616,1739658638742,-500.0,8.846e-05,2]
[353214617,1739658638752,-1127.17,8.846e-05,2]
[353214618,1739658638761,-502.50025769,8.846e-05,2]
[353214619,1739658638770,-500.0,8.846e-05,2]
[353214620,1739658638780,-500.0,8.846e-05,2]
[353214621,1739658638789,-500.0,8.846e-05,2]
[353214622,1739658638798,-500.0,8.846e-05,2]
[353214623,1739658638807,-500.0,8.846e-05,2]
[353214624,1739658638816,-500.0,8.846e-05,2]
[353214625,1739658638826,-591.57814628,8.846e-05,2]
[353214626,1739658638835,-620.55,8.846e-05,2]
[353214627,1739658638844,-500.0,8.846e-05,2]
[353214628,1739658638853,-500.00000001,8.846e-05,2]
[353214629,1739658638862,-234.78717795,8.846e-05,2]
[353214630,1739658638881,-265.21282205,8.846e-05,2]
[353214631,1739658638890,-500.0,8.846e-05,2]
[353214632,1739658638900,-500.0,8.846e-05,2]
[353214633,1739658638910,-500.0,8.846e-05,2]
[353214634,1739658638919,-500.0,8.846e-05,2]
[353214635,1739658638928,-0.60595474,8.846e-05,2]
[353214636,1739658638940,-499.39404526,8.846e-05,2]
[353214637,1739658638950,-678.68,8.846e-05,2]
[353214638,1739658638960,-623.01604706,8.846e-05,2]
[353214639,1739658638970,-500.0,8.846e-05,2]
[353214640,1739658638979,-500.0,8.846e-05,2]
[353214641,1739658638989,-449.72448752,8.846e-05,2]
[353214642,1739658638999,-500.0,8.846e-05,2]
[353214643,1739658639009,-500.0,8.846e-05,2]
[353214644,1739658639019,-519.7570156,8.846e-05,2]
[353214645,1739658639031,-500.0,8.846e-05,2]
[353214646,1739658639040,-500.0,8.846e-05,2]
[353214647,1739658639049,-500.0,8.846e-05,2]
[353214648,1739658639058,-500.0,8.846e-05,2]
[353214649,1739658639067,-842.14,8.846e-05,2]
[353214650,1739658639078,-352.35811802,8.846e-05,2]
[353214651,1739658639090,-147.64188198,8.846e-05,2]
[353214652,1739658639100,-500.0,8.846e-05,2]
[353214653,1739658639109,-500.0,8.846e-05,2]
[353214654,1739658639118,-1395.4,8.846e-05,2]
[353214655,1739658639127,-500.0,8.846e-05,2]
[353214656,1739658639136,-500.0,8.846e-05,2]
[353214657,1739658639145,-500.0,8.846e-05,2]
[353214658,1739658639155,-722.77,8.846e-05,2]
[353214659,1739658639164,-2492.71,8.846e-05,2]
[353214660,1739658639173,-904.19,8.846e-05,2]
[353214661,1739658639182,-963.57,8.846e-05,2]
[353214662,1739658639191,-373.18965151,8.849e-05,2]
[353214663,1739658639225,4337.63,8.843e-05,2]
[353214678,1739658640028,3417.13,8.843e-05,2]
[353214687,1739658640372,-1609.36001913,8.849e-05,2]
[353214697,1739658643367,-467.08114111,8.849e-05,2]
[353214698,1739658643377,-500.0,8.873e-05,2]
[353214699,1739658643387,-398.26734505,8.873e-05,2]
[353214700,1739658643396,-500.0,8.873e-05,2]
[353214701,1739658643406,-58.16571384,8.873e-05,2]
[353214702,1739658643418,-366.63463244,8.873e-05,2]
[353214703,1739658643428,-103.56843531,8.873e-05,2]
[353214704,1739658643458,-430.98275625,8.873e-05,2]
[353214705,1739658643468,-500.0,8.873e-05,2]
[353214706,1739658643478,-500.0,8.873e-05,2]
[353214707,1739658643488,-161.11234649,8.873e-05,2]
[353214708,1739658643497,-502.57107391,8.873e-05,2]
[353214709,1739658643506,-500.0,8.873e-05,2]
[353214710,1739658643516,-500.0,8.873e-05,2]
[353214711,1739658643525,-313.01698922,8.873e-05,2]
[353214712,1739658643536,-500.37266573,8.873e-05,2]
[353214713,1739658643549,-152.75572143,8.873e-05,2]
[353214714,1739658643559,-302.72341295,8.873e-05,2]
[353214715,1739658643571,-197.27658705,8.873e-05,2]
[353214716,1739658643580,-212.8259994,8.873e-05,2]
[353214717,1739658643590,-269.15117955,8.873e-05,2]
[353214718,1739658643600,-500.0,8.873e-05,2]
[353214719,1739658643609,-1970.0,8.873e-05,2]
[353214720,1739658643619,-538.0,8.873e-05,2]
[353214721,1739658643628,-1940.07442625,8.873e-05,2]
[353214722,1739658643640,-351.92557375,8.873e-05,2]
[353214723,1739658643649,-396.0,8.873e-05,2]
[353214724,1739658643658,-438.864,8.892e-05,2]
[353214725,1739658643667,-500.0,8.899e-05,2]
[353214726,1739658643676,-233.10554972,8.899e-05,2]
[353214728,1739658643686,-963.57,8.899e-05,2]
[353214730,1739658643695,-963.57,8.899e-05,2]
[353214731,1739658643706,-963.57,8.899e-05,2]
[353214733,1739658643715,-963.57,8.899e-05,2]
[353214735,1739658643725,-963.57,8.899e-05,2]
[353214737,1739658643735,-363.08032208,8.899e-05,2]
[353214740,1739658643747,-600.48967792,8.899e-05,2]
[353214742,1739658643757,-142.01280068,8.899e-05,2]
[353214744,1739658643769,-821.55719932,8.899e-05,2]
[353214746,1739658643779,-963.57,8.899e-05,2]
[353214748,1739658643789,-963.57,8.899e-05,2]
[353214749,1739658643798,-601.34960991,8.899e-05,2]
[353214752,1739658643810,-362.23929681,8.899e-05,2]
[353214753,1739658643819,-500.0,8.899e-05,2]
[353214754,1739658643830,-199.96489613,8.899e-05,2]
[353214755,1739658643839,-200.0,8.899e-05,2]
[353214756,1739658643849,-25937.79580606,8.9e-05,2]
[353214757,1739658643885,500.0,8.843e-05,2]
[353214758,1739658643933,500.0,8.843e-05,2]
[353214759,1739658644712,500.0,8.843e-05,2]
[353214761,1739658646351,-31012.982364,8.9e-05,2]
[353214764,1739658647843,639.46,8.843e-05,2]
[353214765,1739658648930,500.0,8.843e-05,2]
[353214766,1739658649385,500.0,8.843e-05,2]
[353214767,1739658652885,500.0,8.843e-05,2]
[353214768,1739658653584,500.0,8.843e-05,2]
[353214769,1739658655677,1427.84,8.843e-05,2]
[353214770,1739658658663,1112.83,8.843e-05,2]
[353214771,1739658659271,1021.77,8.843e-05,2]
[353214772,1739658661281,500.0,8.843e-05,2]
[353214773,1739658666989,451.63976033,8.843e-05,2]
[353214774,1739658668101,3376.31,8.843e-05,2]
[353214775,1739658670430,1026.29,8.843e-05,2]
[353214776,1739658675007,500.0,8.843e-05,2]
[353214777,1739658676203,537.74,8.843e-05,2]
[353214778,1739658680434,500.0,8.843e-05,2]
[353214779,1739658680814,3192.24,8.843e-05,2]
[353214780,1739658684093,500.0,8.843e-05,2]
[353214781,1739658686012,1307.95,8.843e-05,2]
[353214782,1739658686550,500.0,8.843e-05,2]
[353214783,1739658689060,1167.37,8.843e-05,2]
[353214784,1739658689207,500.0,8.843e-05,2]
[353214785,1739658692504,500.0,8.843e-05,2]
[353214786,1739658693001,1693.53,8.843e-05,2]
[353214787,1739658695072,1055.11,8.843e-05,2]
[353214788,1739658696098,16330.51,8.843e-05,2]
[353214789,1739658697181,500.0,8.843e-05,2]
[353214790,1739658697620,500.0,8.843e-05,2]
[353214791,1739658699012,500.0,8.843e-05,2]
[353214792,1739658700436,368.11559736,8.843e-05,2]
[353214793,1739658700798,611.92,8.843e-05,2]
[353214794,1739658701225,500.0,8.843e-05,2]
[353214795,1739658702908,1378.6,8.843e-05,2]
[353214796,1739658705609,500.0,8.843e-05,2]
[353214797,1739658705958,500.0,8.843e-05,2]
[353214798,1739658706616,36028.86,8.843e-05,2]
[353214799,1739658707842,509.04549237,8.843e-05,2]
[353214800,1739658707967,580.19,8.843e-05,2]
[353214801,1739658708126,264.26129643,8.843e-05,2]
[353214802,1739658708718,500.0,8.843e-05,2]
[353214803,1739658709889,500.0,8.843e-05,2]
[353214804,1739658710625,500.0,8.843e-05,2]
[353214805,1739658711087,518.94974783,8.843e-05,2]
[353214806,1739658711598,500.0,8.843e-05,2]
[353214807,1739658713791,427.20471527,8.843e-05,2]
[353214808,1739658714727,335.81725781,8.843e-05,2]
[353214809,1739658715295,500.0,8.843e-05,2]
[353214810,1739658715650,500.0,8.843e-05,2]
[353214811,1739658716188,500.0,8.843e-05,2]
[353214812,1739658717017,2091.67,8.843e-05,2]
[353214813,1739658717260,500.0,8.843e-05,2]
[353214814,1739658717302,500.0,8.843e-05,2]
[353214815,1739658718711,500.0,8.843e-05,2]
[353214816,1739658719582,500.0,8.843e-05,2]
[353214817,1739658719624,500.0,8.843e-05,2]
[353214818,1739658720917,500.0,8.843e-05,2]
[353214819,1739658721709,500.0,8.843e-05,2]
[353214820,1739658722443,2101.32,8.843e-05,2]
[353214821,1739658722998,600.14,8.843e-05,2]
[353214822,1739658723485,500.0,8.843e-05,2]
[353214823,1739658724476,500.0,8.843e-05,2]
[353214824,1739658726312,500.90956825,8.843e-05,2]
[353214825,1739658726598,547.88,8.843e-05,2]
[353214826,1739658728091,500.0,8.843e-05,2]
[353214827,1739658729775,500.0,8.843e-05,2]
[353214828,1739658731476,969.9,8.843e-05,2]
[353214829,1739658731897,500.0,8.843e-05,2]
[353214830,1739658732102,500.0,8.843e-05,2]
[353214831,1739658732153,1390.45,8.843e-05,2]
[353214832,1739658734665,500.0,8.843e-05,2]
[353214833,1739658735227,1488.99,8.843e-05,2]
[353214834,1739658735633,500.0,8.843e-05,2]
[353214835,1739658736185,500.0,8.843e-05,2]
[353214836,1739658738268,1101.04,8.843e-05,2]
[353214837,1739658739165,500.0,8.843e-05,2]
[353214838,1739658739412,500.0,8.843e-05,2]
[353214839,1739658739448,625.64,8.843e-05,2]
[353214840,1739658739966,500.0,8.843e-05,2]
[353214841,1739658740881,1211.58013777,0.00016,120]
[353214842,1739658741155,500.0,8.843e-05,2]
[353214843,1739658741414,500.0,8.843e-05,2]
[353214844,1739658744178,1802.79,8.843e-05,2]
[353214845,1739658744343,568.02,8.843e-05,2]
[353214846,1739658745314,500.0,8.843e-05,2]
[353214847,1739658745349,730.05,8.843e-05,2]
[353214848,1739658746683,956.93,8.843e-05,2]
[353214849,1739658746737,917.71,8.843e-05,2]
[353214853,1739658747928,500.0,8.843e-05,2]
[353214854,1739658748154,500.0,8.843e-05,2]
[353214855,1739658749080,500.0,8.843e-05,2]
[353214856,1739658750035,500.0,8.843e-05,2]
[353214857,1739658754028,500.0,8.843e-05,2]
[353214858,1739658755664,500.0,8.843e-05,2]
[353214859,1739658755894,500.0,8.843e-05,2]
[353214860,1739658756853,500.0,8.843e-05,2]
[353214861,1739658758452,500.0,8.843e-05,2]
[353214862,1739658761623,500.0,8.843e-05,2]
[353214863,1739658763000,500.0,8.843e-05,2]
[353214864,1739658763053,507.79,8.843e-05,2]
[353214865,1739658763335,1948.69,8.843e-05,2]
[353214866,1739658765133,500.0,8.843e-05,2]
[353214867,1739658767992,500.0,8.843e-05,2]
[353214868,1739658770148,500.0,8.843e-05,2]
[353214869,1739658771703,2648.48,8.843e-05,2]
[353214870,1739658772406,500.0,8.843e-05,2]
[353214871,1739658774606,500.0,8.843e-05,2]
[353214872,1739658776478,500.0,8.843e-05,2]
[353214873,1739658776634,500.0,8.843e-05,2]
[353214874,1739658777411,500.0,8.843e-05,2]
[353214875,1739658778729,1013.05,8.843e-05,2]
[353214876,1739658779804,500.0,8.843e-05,2]
[353214878,1739658781004,500.0,8.843e-05,2]
[353214879,1739658781066,1320.23,8.843e-05,2]
[353214880,1739658783937,500.0,8.843e-05,2]
[353214881,1739658786106,2879.25,8.843e-05,2]
[353214882,1739658787365,500.0,8.843e-05,2]
[353214883,1739658788267,500.0,8.843e-05,2]
[353214884,1739658791907,500.0,8.843e-05,2]
[353214885,1739658792844,500.0,8.843e-05,2]
[353214886,1739658794897,5072.67,8.843e-05,2]
[353214887,1739658798683,815.25,8.843e-05,2]
[353214888,1739658799059,1117.82,8.843e-05,2]
[353214889,1739658802627,699.3,8.843e-05,2]
[353214890,1739658803416,500.0,8.843e-05,2]
[353214891,1739658804366,500.0,8.843e-05,2]
[353214892,1739658807361,649.12954605,8.843e-05,2]
[353214893,1739658807928,198.22712103,8.843e-05,2]
[353214894,1739658808307,389.83196694,0.00019,120]
[353214895,1739658809079,535.53,8.843e-05,2]
[353214896,1739658812504,1353.23,8.843e-05,2]
[353214897,1739658813172,524.95,8.843e-05,2]
[353214898,1739658814623,500.0,8.843e-05,2]
[353214899,1739658815136,500.0,8.843e-05,2]
[353214900,1739658817306,500.0,8.843e-05,2]
[353214901,1739658818253,594.69,8.843e-05,2]
[353214902,1739658818415,500.0,8.843e-05,2]
[353214903,1739658823858,500.0,8.843e-05,2]
[353214904,1739658826009,542.81751405,8.843e-05,2]
[353214905,1739658826400,2424.83,8.843e-05,2]
[353214906,1739658828118,1802.61,8.843e-05,2]
[353214907,1739658828201,500.0,8.843e-05,2]
[353214908,1739658830741,500.0,8.843e-05,2]
[353214909,1739658831015,500.0,8.843e-05,2]
[353214910,1739658831543,781.11,8.843e-05,2]
[353214912,1739658835774,500.0,8.843e-05,2]
[353214913,1739658836144,409.34381235,8.843e-05,2]
[353214914,1739658836728,925.27,8.843e-05,2]
[353214915,1739658837563,500.0,8.843e-05,2]
[353214916,1739658837947,500.0,8.843e-05,2]
[353214917,1739658838298,500.0,8.843e-05,2]
[353214918,1739658838338,189.36543911,8.843e-05,2]
[353214919,1739658839391,505.47434019,8.843e-05,2]
[353214920,1739658840169,987.07,8.843e-05,2]
[353214921,1739658840202,517.99895411,8.843e-05,2]
[353214922,1739658841293,500.0,8.843e-05,2]
[353214923,1739658842426,500.0,8.843e-05,2]
[353214924,1739658844164,862.78,8.843e-05,2]
[353214925,1739658845367,2587.02,8.843e-05,2]
[353214926,1739658849255,510.08,8.843e-05,2]
[353214927,1739658851948,14674.92,8.843e-05,2]
[353214928,1739658853724,4281.89,8.843e-05,2]
[353214929,1739658854676,500.0,8.843e-05,2]
[353214930,1739658856552,500.0,8.843e-05,2]
[353214931,1739658862244,500.0,8.843e-05,2]
[353214932,1739658865355,500.0,8.843e-05,2]
[353214933,1739658866178,500.0,8.843e-05,2]
[353214934,1739658866893,3344.54,8.843e-05,2]
[353214935,1739658868427,507.48713777,8.843e-05,2]
[353214936,1739658868480,500.0,8.843e-05,2]
[353214937,1739658868517,643.9,8.843e-05,2]
[353214938,1739658870550,1355.82,8.843e-05,2]
[353214939,1739658879488,500.0,8.843e-05,2]
[353214940,1739658879797,501.75470528,8.843e-05,2]
[353214941,1739658881799,1066.47,8.843e-05,2]
[353214942,1739658884079,1049.51,8.843e-05,2]
[353214943,1739658888371,691.1,8.843e-05,2]
[353214944,1739658893877,500.0,8.843e-05,2]
[353214945,1739658894252,3263.16,8.843e-05,2]
[353214946,1739658897614,500.0,8.843e-05,2]
[353214947,1739658897735,1611.73,8.843e-05,2]
[353214949,1739658900207,500.0,8.843e-05,2]
[353214950,1739658906873,818.49,8.843e-05,2]
[353214951,1739658906910,2761.27,8.843e-05,2]
[353214952,1739658907217,1695.88,8.843e-05,2]
[353214953,1739658907460,500.0,8.843e-05,2]
[353214954,1739658907852,500.0,8.843e-05,2]
[353214955,1739658914227,220.70369566,8.843e-05,2]
[353214956,1739658915137,500.0,8.843e-05,2]
[353214957,1739658915684,1383.66,8.843e-05,2]
[353214958,1739658918055,1181.23,8.843e-05,2]
[353214959,1739658919049,500.0,8.843e-05,2]
[353214960,1739658921220,500.0,8.843e-05,2]
[353214961,1739658922532,500.0,8.843e-05,2]
[353214962,1739658923290,500.0,8.843e-05,2]
[353214963,1739658924784,16462.93,8.843e-05,2]
[353214964,1739658924869,1276.0,8.843e-05,2]
[353214965,1739658925112,1276.0,8.843e-05,2]
[353214966,1739658925397,1276.0,8.843e-05,2]
[353214967,1739658925690,500.0,8.843e-05,2]
[353214968,1739658928233,500.0,8.843e-05,2]
[353214969,1739658928665,500.0,8.843e-05,2]
[353214970,1739658930474,500.0,8.843e-05,2]
[353214971,1739658930670,500.0,8.843e-05,2]
[353214972,1739658934174,500.0,8.843e-05,2]
[353214973,1739658936113,36535.83,8.843e-05,2]
[353214974,1739658942242,556.56,8.843e-05,2]
[353214975,1739658942445,1369.86,8.843e-05,2]
[353214976,1739658945691,500.0,8.843e-05,2]
[353214977,1739658946795,500.0,8.843e-05,2]
[353214978,1739658949981,500.0,8.843e-05,2]
[353214979,1739658951551,2086.09,8.843e-05,2]
[353214980,1739658953240,2110.17,8.843e-05,2]
[353214981,1739658954281,1790.17,8.843e-05,2]
[353214982,1739658957296,1025.79,8.843e-05,2]
[353214983,1739658965462,1426.95,8.843e-05,2]
[353214984,1739658968296,500.0,8.843e-05,2]
[353214985,1739658969412,544.35,8.843e-05,2]
[353214986,1739658969979,500.0,8.843e-05,2]
[353214987,1739658971256,500.0,8.843e-05,2]
[353214988,1739658971986,500.0,8.843e-05,2]
[353214989,1739658973972,599.57,8.843e-05,2]
[353214990,1739658976990,917.06,8.843e-05,2]